{"text_format":"2","workbook":"xlsx","n_sheets":7,"sheets":["Пол","Преподаватели","Преподаваемые дисциплины","Преподаватель и дисциплины","Курсы","Преподаватели_Курсы","TeachersCourses (3)"],"not_rendered":{"charts":0,"images":0,"macros":0,"external_links":0,"defined_names":1,"comments":0,"pivot_tables":0},"unopened":[],"bounds":{"document_bytes":16777216,"sheet_cells":100000,"run_cost":"one","rows_first":2000,"rows_last":500,"rows_between":2000,"halvings":0,"cell_chars":16384,"cell_head_chars":4096},"cells_cut":0,"cells_raw":0,"read":"whole","date_system":"1900"}

{"sheet":"Пол","index":0,"n_rows":3,"n_cols":2,"rows_kept":3,"cut":false,"hidden":false,"merged":[]}
["id","gender"]
[null,"м"]
[null,"ж"]

{"sheet":"Преподаватели","index":1,"n_rows":31,"n_cols":40,"rows_kept":31,"cut":false,"hidden":false,"merged":[]}
["id","surname","name","patronymic","gender_id","birthday","experience","email","phone",{"$nulls":14},"ФИО","Пол","Дата рождения","Стаж","Почта","Телефон"]
[null,"Баранов","Илья","Дмитриевич",1,"1955-12-28",576,"cquitzon@yahoo.com","",{"$nulls":14},"Баранов Илья Дмитриевич","м","1955-12-28","48 лет","cquitzon@yahoo.com","не заполнено",null,"м",{"$f":"MATCH(Y2,$AE$2:$AE$3,0)","v":1},"1955-12-28",null,48,"лет",{"$f":"IF(AJ2 = \"мес.\",AI2,AI2*12)","v":576}]
[null,"Белова","Виктория","Львовна",2,"1961-06-25",168,"stephanie05@casper.com","+7 953 746 68 53",{"$nulls":14},"Белова Виктория Львовна","ж","1961-06-25","14 лет","stephanie05@casper.com","+7 953 746 68 53",null,"ж",2,"1961-06-25",null,14,"лет",{"$f":"IF(AJ3 = \"мес.\",AI3,AI3*12)","v":168},null,null,"+7 953 746 68 53"]
[null,"Беляев","Дамир","Даниилович",1,"1970-11-21",12,"markus05@bradtke.com","+7 905 321 18 12",{"$nulls":14},"Беляев Дамир Даниилович","м","1970-11-21","1 год","markus05@bradtke.com","+7 905 321 18 12",null,null,1,"1970-11-21",null,1,"год",12,null,null,"+7 905 321 18 12"]
[null,"Васильев","Илья","Даниилович",1,"1975-11-14",216,"camron.kub@hotmail.com","+7 964 743 54 52",{"$nulls":14},"Васильев Илья Даниилович","м","1975-11-14","18 лет","camron.kub@hotmail.com","+7 964 743 54 52",null,null,1,"1975-11-14",null,18,"лет",216,null,null,"+7 964 743 54 52"]
[null,"Воронкова","Виктория","Львовна",2,"1958-09-05",1,"kerluke.dolly@yahoo.com","+7 961 174 46 30",{"$nulls":14},"Воронкова Виктория Львовна","ж","1958-09-05","1 мес.","kerluke.dolly@yahoo.com","+7 961 174 46 30",null,null,2,"1958-09-05",null,1,"мес.",1,null,null,"+7 961 174 46 30"]
[null,"Горелова","Вера","Андреевна",2,"1957-10-15",288,"keebler.johan@walter.com","+7 950 606 73 97",{"$nulls":14},"Горелова Вера Андреевна","ж","1957-10-15","24 года","keebler.johan@walter.com","+7 950 606 73 97",null,null,2,"1957-10-15",null,24,"года",288,null,null,"+7 950 606 73 97"]
[null,"Дорохова","Арина","Михайловна",2,"1971-01-06",4,"elenor10@little.org","+7 963 043 78 63",{"$nulls":14},"Дорохова Арина Михайловна","ж","1971-01-06","4 мес.","elenor10@little.org"," +7 963 043 78 63",null,null,2,"1971-01-06",null,4,"мес.",4,null,null," +7 963 043 78 63"]
[null,"Елисеева","Мария","Данииловна",2,"1981-09-01",144,"jonatan16@krajcik.info","+7 983 283 81 71",{"$nulls":14},"Елисеева Мария Данииловна","ж","1981-09-01","12 лет","jonatan16@krajcik.info","+7 983 283 81 71",null,null,2,"1981-09-01",null,12,"лет",144,null,null,"+7 983 283 81 71"]
[null,"Калашникова","София","Платоновна",2,"1977-02-17",60,"hparisian@donnelly.com","",{"$nulls":14},"Калашникова София Платоновна","ж","1977-02-17","5 лет","hparisian@donnelly.com","не заполнено",null,null,2,"1977-02-17",null,5,"лет",60]
[null,"Колесов","Фёдор","Матвеевич",1,"1993-05-31",38,"idonnelly@boyer.com","+7 968 456 61 92",{"$nulls":14},"Колесов Фёдор Матвеевич","м","1993-05-31","38 мес.","idonnelly@boyer.com","+7 968 456 61 92",null,null,1,"1993-05-31",null,38,"мес.",38,null,null,"+7 968 456 61 92"]
[null,"Маркин","Иван","Сергеевич",1,"1970-12-08",15,"emily.nitzsche@gmail.com","+7 903 987 77 01",{"$nulls":14},"Маркин Иван Сергеевич","м","1970-12-08","15 мес.","emily.nitzsche@gmail.com","+7 903 987 77 01",null,null,1,"1970-12-08",null,15,"мес.",15,null,null,"+7 903 987 77 01"]
[null,"Маркова","Дарья","Тимуровна",2,"1980-08-07",96,"renner.freddy@koch.biz","+7 969 286 97 27",{"$nulls":14},"Маркова Дарья Тимуровна","ж","1980-08-07","8 лет","renner.freddy@koch.biz","+7 969 286 97 27",null,null,2,"1980-08-07",null,8,"лет",96,null,null,"+7 969 286 97 27"]
[null,"Наумов","Павел","Иванович",1,"1956-04-28",420,"ggraham@yahoo.com","+7 962 232 68 96",{"$nulls":14},"Наумов Павел Иванович","м","1956-04-28","35 лет","ggraham@yahoo.com","+7 962 232 68 96",null,null,1,"1956-04-28",null,35,"лет",420,null,null,"+7 962 232 68 96"]
[null,"Никифорова","Элина","Марковна",2,"1960-01-11",48,"curt40@crooks.biz","+7 969 491 94 92",{"$nulls":14},"Никифорова Элина Марковна","ж","1960-01-11","4 года","curt40@crooks.biz","+7 969 491 94 92",null,null,2,"1960-01-11",null,4,"года",48,null,null,"+7 969 491 94 92"]
[null,"Одинцова","Софья","Глебовна",2,"2002-10-11",12,"beer.dortha@gmail.com","+7 964 068 40 22",{"$nulls":14},"Одинцова Софья Глебовна","ж","2002-10-11","12 мес.","beer.dortha@gmail.com"," +7 964 068 40 22",null,null,2,"2002-10-11",null,12,"мес.",12,null,null," +7 964 068 40 22"]
[null,"Петров","Фёдор","Павлович",1,"1969-03-10",111.60000000000001,"laverne70@wolff.org","",{"$nulls":14},"Петров Фёдор Павлович","м","1969-03-10","9,3 года","laverne70@wolff.org","нет",null,null,1,"1969-03-10",null,9.3000000000000007,"года",111.60000000000001]
[null,"Попова","Алиса","Ярославовна",2,"1979-11-07",102,"wisoky.zachery@botsford.com","+7 983 383 92 94",{"$nulls":14},"Попова Алиса Ярославовна","ж","1979-11-07","8,5 лет","wisoky.zachery@botsford.com","+7 983 383 92 94",null,null,2,"1979-11-07",null,8.5,"лет",102,null,null,"+7 983 383 92 94"]
[null,"Самсонова","Кира","Богдановна",2,"1973-05-08",24,"lweber@little.com","+7 900 861 56 78",{"$nulls":14},"Самсонова Кира Богдановна","ж","1973-05-08","24 мес.","lweber@little.com"," +7 900 861 56 78",null,null,2,"1973-05-08",null,24,"мес.",24,null,null," +7 900 861 56 78"]
[null,"Седова","Алина","Дмитриевна",2,"1983-09-17",32,"alexys99@kautzer.net","+7 967 242 01 23",{"$nulls":14},"Седова Алина Дмитриевна","ж","1983-09-17","32 мес.","alexys99@kautzer.net"," +7 967 242 01 23",null,null,2,"1983-09-17",null,32,"мес.",32,null,null," +7 967 242 01 23"]
[null,"Серов","Денис","Святославович",1,"1973-07-20",36,"legros.francis@gmail.com","+7 969 604 50 00",{"$nulls":14},"Серов Денис Святославович","м","1973-07-20","3 года","legros.francis@gmail.com","+7 969 604 50 00",null,null,1,"1973-07-20",null,3,"года",36,null,null,"+7 969 604 50 00"]
[null,"Смирнов","Даниил","Максимович",1,"1996-11-27",6,"kpollich@gmail.com","+7 980 323 97 58",{"$nulls":14},"Смирнов Даниил Максимович","м","1996-11-27","6 мес.","kpollich@gmail.com","+7 980 323 97 58",null,null,1,"1996-11-27",null,6,"мес.",6,null,null,"+7 980 323 97 58"]
[null,"Соловьев","Матвей","Денисович",1,"1958-01-04",156,"noelia.grimes@pacocha.net","",{"$nulls":14},"Соловьев Матвей Денисович","м","1958-01-04","13 лет","noelia.grimes@pacocha.net","нет",null,null,1,"1958-01-04",null,13,"лет",156]
[null,"Сорокина","Кира","Фёдоровна",2,"1986-07-29",6,"maud89@nader.com","",{"$nulls":14},"Сорокина Кира Фёдоровна","ж","1986-07-29","6 мес.","maud89@nader.com","нет",null,null,2,"1986-07-29",null,6,"мес.",6]
[null,"Софронов","Глеб","Григорьевич",1,"1972-09-21",420,"antonina.feest@yahoo.com","+7 904 920 54 49",{"$nulls":14},"Софронов Глеб Григорьевич","м","1972-09-21","35 лет","antonina.feest@yahoo.com","+7 904 920 54 49",null,null,1,"1972-09-21",null,35,"лет",420,null,null,"+7 904 920 54 49"]
[null,"Степанова","Алиса","Артёмовна",2,"1956-08-08",420,"camilla90@hotmail.com","+7 904 420 71 01",{"$nulls":14},"Степанова Алиса Артёмовна","ж","1956-08-08","35 лет","camilla90@hotmail.com","+7 904 420 71 01",null,null,2,"1956-08-08",null,35,"лет",420,null,null,"+7 904 420 71 01"]
[null,"Федоров","Алексей","Фёдорович",1,"1989-04-11",168,"qdonnelly@gmail.com","+7 983 601 14 32",{"$nulls":14},"Федоров Алексей Фёдорович","м","1989-04-11","14 лет","qdonnelly@gmail.com","+7 983 601 14 32",null,null,1,"1989-04-11",null,14,"лет",168,null,null,"+7 983 601 14 32"]
[null,"Фролов","Георгий","Львович",1,"1977-01-25",23,"okuneva.annabell@tromp.com","+7 960 539 08 47",{"$nulls":14},"Фролов Георгий Львович","м","1977-01-25","23 мес.","okuneva.annabell@tromp.com"," +7 960 539 08 47",null,null,1,"1977-01-25",null,23,"мес.",23,null,null," +7 960 539 08 47"]
[null,"Царев","Ярослав","Львович",1,"1970-03-16",14.399999999999999,"guadalupe43@parisian.com","+7 965 463 78 97",{"$nulls":14},"Царев Ярослав Львович","м","1970-03-16","1,2 лет","guadalupe43@parisian.com","+7 965 463 78 97",null,null,1,"1970-03-16",null,1.2,"лет",14.399999999999999,null,null,"+7 965 463 78 97"]
[null,"Шилова","Есения","Михайловна",2,"1993-12-05",16,"rickie80@wuckert.com","+7 908 691 61 60",{"$nulls":14},"Шилова Есения Михайловна","ж","1993-12-05","16 мес.","rickie80@wuckert.com"," +7 908 691 61 60",null,null,2,"1993-12-05",null,16,"мес.",16,null,null," +7 908 691 61 60"]
[null,"Яшина","Мария","Даниловна",2,"1992-05-29",132,"leslie.gerlach@hotmail.com","",{"$nulls":14},"Яшина Мария Даниловна","ж","1992-05-29","11 лет","leslie.gerlach@hotmail.com","не заполнено",null,null,2,"1992-05-29",null,11,"лет",132]

{"sheet":"Преподаваемые дисциплины","index":2,"n_rows":65,"n_cols":15,"rows_kept":65,"cut":false,"hidden":false,"merged":[]}
["id","lesson",{"$nulls":11}," анатомия",{"$f":"TRIM(N1)","v":"анатомия"}]
[null,"анатомия",{"$nulls":11}," архитектура аппаратных средств",{"$f":"TRIM(N2)","v":"архитектура аппаратных средств"}]
[null,"архитектура аппаратных средств",{"$nulls":11}," астрономия","астрономия"]
[null,"астрономия",{"$nulls":11}," БЖ","БЖ"]
[null,"БЖ",{"$nulls":11}," введение в специальность","введение в специальность"]
[null,"введение в специальность",{"$nulls":11}," география","география"]
[null,"география",{"$nulls":11}," дискретная математика","дискретная математика"]
[null,"дискретная математика",{"$nulls":11}," дискретная математика","дискретная математика"]
[null,"естествознание",{"$nulls":11}," естествознание","естествознание"]
[null,"информатика",{"$nulls":11}," информатика","информатика"]
[null,"культура речи",{"$nulls":11}," информатика","информатика"]
[null,"литература",{"$nulls":11}," информатика","информатика"]
[null,"математическое моделирование",{"$nulls":11}," информатика","информатика"]
[null,"менеджмент в профессиональной деятельности",{"$nulls":11}," культура речи","культура речи"]
[null,"обществознание",{"$nulls":11}," литература","литература"]
[null,"право",{"$nulls":11}," математическое моделирование","математическое моделирование"]
[null,"разработка программных модулей",{"$nulls":11}," менеджмент в профессиональной деятельности","менеджмент в профессиональной деятельности"]
[null,"родной язык",{"$nulls":11}," обществознание","обществознание"]
[null,"системное программирование",{"$nulls":11}," обществознание","обществознание"]
[null,"стандартизация",{"$nulls":11}," право","право"]
[null,"тестирование",{"$nulls":11}," право","право"]
[null,"физика",{"$nulls":11}," разработка программных модулей","разработка программных модулей"]
[null,"философия",{"$nulls":11}," родной язык","родной язык"]
[null,"химия",{"$nulls":11}," родной язык","родной язык"]
[null,"экология",{"$nulls":11}," системное программирование","системное программирование"]
[null,"биология",{"$nulls":11}," системное программирование","системное программирование"]
[null,"внедрение и поддержка компьютерных систем",{"$nulls":11}," стандартизация","стандартизация"]
[null,"информационные технологии",{"$nulls":11}," тестирование","тестирование"]
[null,"история",{"$nulls":11}," физика","физика"]
[null,"компьютерная графика",{"$nulls":11}," физика","физика"]
[null,"компьютерные сети",{"$nulls":11}," физика","физика"]
[null,"математика",{"$nulls":11}," философия","философия"]
[null,"ОБЖ",{"$nulls":11}," философия","философия"]
[null,"основы проектирования баз данных",{"$nulls":11}," химия","химия"]
[null,"психология",{"$nulls":11}," экология","экология"]
[null,"русский язык",{"$nulls":11},"астрономия","астрономия"]
[null,"теория вероятностей",{"$nulls":11},"астрономия","астрономия"]
[null,"физическая культура",{"$nulls":11},"биология","биология"]
[null,"численные методы",{"$nulls":11},"биология","биология"]
[null,"экономика отрасли",{"$nulls":11},"внедрение и поддержка компьютерных систем","внедрение и поддержка компьютерных систем"]
[{"$nulls":13},"информатика","информатика"]
[{"$nulls":13},"информационные технологии","информационные технологии"]
[{"$nulls":13},"история","история"]
[{"$nulls":13},"история","история"]
[{"$nulls":13},"компьютерная графика","компьютерная графика"]
[{"$nulls":13},"компьютерная графика","компьютерная графика"]
[{"$nulls":13},"компьютерные сети","компьютерные сети"]
[{"$nulls":13},"математика","математика"]
[{"$nulls":13},"математика","математика"]
[{"$nulls":13},"математика","математика"]
[{"$nulls":13},"ОБЖ","ОБЖ"]
[{"$nulls":13},"основы проектирования баз данных","основы проектирования баз данных"]
[{"$nulls":13},"психология","психология"]
[{"$nulls":13},"разработка программных модулей","разработка программных модулей"]
[{"$nulls":13},"русский язык","русский язык"]
[{"$nulls":13},"русский язык","русский язык"]
[{"$nulls":13},"теория вероятностей","теория вероятностей"]
[{"$nulls":13},"тестирование","тестирование"]
[{"$nulls":13},"физика","физика"]
[{"$nulls":13},"физическая культура","физическая культура"]
[{"$nulls":13},"физическая культура","физическая культура"]
[{"$nulls":13},"физическая культура","физическая культура"]
[{"$nulls":13},"химия","химия"]
[{"$nulls":13},"численные методы","численные методы"]
[{"$nulls":13},"экономика отрасли","экономика отрасли"]

{"sheet":"Преподаватель и дисциплины","index":3,"n_rows":66,"n_cols":20,"rows_kept":66,"cut":false,"hidden":false,"merged":[]}
["id","teacher","lesson",{"$nulls":11},"ФИО",null,"Предметы"]
[null,20,35,{"$nulls":8},"анатомия","Баранов Илья Дмитриевич",{"$f":"MATCH(O2,$M$2:$M$31,0)","v":8},"Елисеева Мария Данииловна",{"$f":"MATCH(Q2,$L$2:$L$40,0)","v":24},"экология","география","химия","экология"]
[null,9,23,{"$nulls":8},"архитектура аппаратных средств","Белова Виктория Львовна",10,"Колесов Фёдор Матвеевич",22,"философия","обществознание","право","философия"]
[null,8,25,{"$nulls":8},"астрономия","Беляев Дамир Даниилович",4,"Васильев Илья Даниилович",22,"философия","обществознание","право","философия"]
[null,13,3,{"$nulls":8},"БЖ","Васильев Илья Даниилович",11,"Маркин Иван Сергеевич",3,"астрономия","информатика","физика","астрономия"]
[null,2,31,{"$nulls":8},"введение в специальность","Воронкова Виктория Львовна",18,"Самсонова Кира Богдановна",2,"архитектура аппаратных средств","системное программирование","информатика","архитектура аппаратных средств"]
[null,21,30,{"$nulls":8},"география","Горелова Вера Андреевна",12,"Маркова Дарья Тимуровна",{"$error":"#N/A"},"","стандартизация","тестирование",""]
[null,27,37,{"$nulls":8},"дискретная математика","Дорохова Арина Михайловна",30,"Яшина Мария Даниловна",{"$error":"#N/A"},"","дискретная математика","математическое моделирование",""]
[null,6,39,{"$nulls":8},"естествознание","Елисеева Мария Данииловна",20,"Серов Денис Святославович",{"$error":"#N/A"},"","родной язык","литература",""]
[null,3,32,{"$nulls":8},"информатика","Калашникова София Платоновна",7,"Дорохова Арина Михайловна",{"$error":"#N/A"},"","родной язык","культура речи",""]
[null,23,9,{"$nulls":8},"культура речи","Колесов Фёдор Матвеевич",13,"Наумов Павел Иванович",{"$error":"#N/A"},"","физика","",""]
[null,12,33,{"$nulls":8},"литература","Маркин Иван Сергеевич",19,"Седова Алина Дмитриевна",{"$error":"#N/A"},"","физика","",""]
[null,14,21,{"$nulls":8},"математическое моделирование","Маркова Дарья Тимуровна",21,"Смирнов Даниил Максимович",{"$error":"#N/A"},"","системное программирование","",""]
[null,10,28,{"$nulls":8},"менеджмент в профессиональной деятельности","Наумов Павел Иванович",15,"Одинцова Софья Глебовна",{"$error":"#N/A"},"","разработка программных модулей","",""]
[null,15,20,{"$nulls":8},"обществознание","Никифорова Элина Марковна",6,"Горелова Вера Андреевна",{"$error":"#N/A"},"","менеджмент в профессиональной деятельности","",""]
[null,5,25,{"$nulls":8},"право","Одинцова Софья Глебовна",29,"Шилова Есения Михайловна",{"$error":"#N/A"},"","информатика","",""]
[null,24,26,{"$nulls":8},"разработка программных модулей","Петров Фёдор Павлович",26,"Федоров Алексей Фёдорович",{"$error":"#N/A"},"","информатика","",""]
[null,30,38,{"$nulls":8},"родной язык","Попова Алиса Ярославовна",14,"Никифорова Элина Марковна",{"$error":"#N/A"},"","естествознание","",""]
[null,11,31,{"$nulls":8},"системное программирование","Самсонова Кира Богдановна",2,"Белова Виктория Львовна",{"$error":"#N/A"},"","дискретная математика","",""]
[null,18,16,{"$nulls":8},"стандартизация","Седова Алина Дмитриевна",23,"Сорокина Кира Фёдоровна",{"$error":"#N/A"},"","введение в специальность","",""]
[null,19,3,{"$nulls":8},"тестирование","Серов Денис Святославович",3,"Беляев Дамир Даниилович",{"$error":"#N/A"},"","БЖ","",""]
[null,7,35,{"$nulls":8},"физика","Смирнов Даниил Максимович",5,"Воронкова Виктория Львовна",{"$error":"#N/A"},"","анатомия","",""]
[null,17,29,{"$nulls":8},"философия","Соловьев Матвей Денисович",9,"Калашникова София Платоновна",{"$error":"#N/A"},"","","",""]
[null,16,29,{"$nulls":8},"химия","Сорокина Кира Фёдоровна",27,"Фролов Георгий Львович",{"$error":"#N/A"},"","","",""]
[null,28,37,{"$nulls":8},"экология","Софронов Глеб Григорьевич",24,"Софронов Глеб Григорьевич",{"$error":"#N/A"},"","","",""]
[null,29,27,{"$nulls":8},"биология","Степанова Алиса Артёмовна",17,"Попова Алиса Ярославовна",{"$error":"#N/A"},"","","",""]
[null,26,36,{"$nulls":8},"внедрение и поддержка компьютерных систем","Федоров Алексей Фёдорович",16,"Петров Фёдор Павлович",{"$error":"#N/A"},"","","",""]
[null,22,31,{"$nulls":8},"информационные технологии","Фролов Георгий Львович",28,"Царев Ярослав Львович",{"$error":"#N/A"},"","","",""]
[null,4,28,{"$nulls":8},"история","Царев Ярослав Львович",22,"Соловьев Матвей Денисович",{"$error":"#N/A"},"","","",""]
[null,1,37,{"$nulls":8},"компьютерная графика","Шилова Есения Михайловна",1,"Баранов Илья Дмитриевич",{"$error":"#N/A"},"","","",""]
[null,25,34,{"$nulls":8},"компьютерные сети","Яшина Мария Даниловна",25,"Степанова Алиса Артёмовна",{"$error":"#N/A"},"","","",""]
[null,13,21,{"$nulls":8},"математика",{"$f":"TRIM(O33)","v":""},null,null,null,"","","",""]
[null,19,21,{"$nulls":8},"ОБЖ","",null,null,null,"","","",""]
[null,12,19,{"$nulls":8},"основы проектирования баз данных","",null,null,null,"","","",""]
[null,21,18,{"$nulls":8},"психология","",{"$nulls":4},"","",""]
[null,18,18,{"$nulls":8},"русский язык","",{"$nulls":4},"","",""]
[null,20,17,{"$nulls":8},"теория вероятностей","",{"$nulls":4},"","",""]
[null,7,17,{"$nulls":8},"физическая культура","",{"$nulls":4},"","",""]
[null,15,16,{"$nulls":8},"численные методы","",{"$nulls":4},"","",""]
[null,10,14,{"$nulls":8},"экономика отрасли"]
[null,4,14]
[null,6,13]
[null,11,9]
[null,29,9]
[null,26,9]
[null,14,8]
[null,2,7]
[null,30,7]
[null,8,6]
[null,23,5]
[null,3,4]
[null,5,1]
[null,8,23]
[null,11,21]
[null,12,20]
[null,10,15]
[null,4,15]
[null,30,12]
[null,20,11]
[null,7,10]
[null,18,9]
[null,8,24]
[null,10,22]
[null,4,22]
[null,11,3]
[null,18,2]

{"sheet":"Курсы","index":4,"n_rows":14,"n_cols":3,"rows_kept":14,"cut":false,"hidden":false,"merged":[]}
["id","cours","hour"]
[null,"Культура и искусство хх века: основные идеи и методические рекомендации",56]
[null,"Общая педагогика",144]
[null,"Охрана труда",36]
[null,"Подготовка к школе. Нейропсихологический подход",72]
[null,"Психологические основы учебной деятельности",144]
[null,"Психология обучения, воспитания и развития",72]
[null,"Разговоры о важном: организация и обеспечение внеурочной деятельности",180]
[null,"Решение задач егэ по информатике на языке программирования python",72]
[null,"Функциональная грамотность школьников",36]
[null,"Методика преподавания основ машинного обучения",30]
[null,"Основы работы в операционной системе м оc",36]
[null,"Основы фотожурналистики",144]
[null,"Применение технологий и методов обучения инвестированию",72]

{"sheet":"Преподаватели_Курсы","index":5,"n_rows":30,"n_cols":29,"rows_kept":30,"cut":false,"hidden":false,"merged":[]}
["id","teacher","cours",{"$nulls":5},"Баранов Илья Дмитриевич",null,9,"Калашникова София Платоновна",null,{"$f":"MATCH(O1,$T$1:$T$13,0)","v":6},"Психология обучения, воспитания и развития",{"$f":"MATCH(Q1,$T$1:$T$13,0)","v":5},"Психологические основы учебной деятельности",{"$f":"MATCH(S1,$T$1:$T$13,0)","v":7},"Разговоры о важном: организация и обеспечение внеурочной деятельности","Культура и искусство хх века: основные идеи и методические рекомендации",{"$nulls":8},{"$f":"TRIM(T1)","v":"Культура и искусство хх века: основные идеи и методические рекомендации"}]
[null,21,11,{"$f":"_xlfn.CONCAT(\"(\",B2,\",\",C2,\"),\")","v":"(21,11),"},{"$nulls":4},"Белова Виктория Львовна",null,21,"Смирнов Даниил Максимович",null,11,"Основы работы в операционной системе м ос",{"$f":"MATCH(Q2,$T$1:$T$13,0)","v":8},"Решение задач егэ по информатике на языке программирования python",{"$f":"MATCH(S2,$T$1:$T$13,0)","v":{"$error":"#N/A"}},"","Общая педагогика",{"$nulls":8},{"$f":"TRIM(T2)","v":"Общая педагогика"}]
[null,6,13,{"$f":"_xlfn.CONCAT(\"(\",B3,\",\",C3,\"),\")","v":"(6,13),"},{"$nulls":4},"Беляев Дамир Даниилович",null,15,"Одинцова Софья Глебовна",null,{"$f":"MATCH(O3,$T$1:$T$13,0)","v":10},"Методика преподавания основ машинного обучения",{"$f":"MATCH(Q3,$T$1:$T$13,0)","v":8},"Решение задач егэ по информатике на языке программирования python",{"$f":"MATCH(S3,$T$1:$T$13,0)","v":{"$error":"#N/A"}},"","Охрана труда",{"$nulls":8},"Охрана труда"]
[null,12,10,"(12,10),",{"$nulls":4},"Васильев Илья Даниилович",null,24,"Софронов Глеб Григорьевич",null,{"$f":"MATCH(O4,$T$1:$T$13,0)","v":11},"Основы работы в операционной системе м оc",{"$f":"MATCH(Q4,$T$1:$T$13,0)","v":8},"Решение задач егэ по информатике на языке программирования python",{"$f":"MATCH(S4,$T$1:$T$13,0)","v":{"$error":"#N/A"}},"","Подготовка к школе. Нейропсихологический подход",{"$nulls":8},"Подготовка к школе. Нейропсихологический подход"]
[null,14,12,"(14,12),",{"$nulls":4},"Воронкова Виктория Львовна",null,1,"Баранов Илья Дмитриевич",null,{"$f":"MATCH(O5,$T$1:$T$13,0)","v":9},"Функциональная грамотность школьников",{"$f":"MATCH(Q5,$T$1:$T$13,0)","v":7},"Разговоры о важном: организация и обеспечение внеурочной деятельности",{"$f":"MATCH(S5,$T$1:$T$13,0)","v":{"$error":"#N/A"}},"","Психологические основы учебной деятельности",{"$nulls":8},"Психологические основы учебной деятельности"]
[null,10,1,"(10,1),",{"$nulls":4},"Горелова Вера Андреевна",null,5,"Воронкова Виктория Львовна",null,{"$f":"MATCH(O6,$T$1:$T$13,0)","v":2},"Общая педагогика",{"$f":"MATCH(Q6,$T$1:$T$13,0)","v":6},"Психология обучения, воспитания и развития",{"$f":"MATCH(S6,$T$1:$T$13,0)","v":{"$error":"#N/A"}},"","Психология обучения, воспитания и развития",{"$nulls":8},"Психология обучения, воспитания и развития"]
[null,15,10,"(15,10),",{"$nulls":4},"Дорохова Арина Михайловна",null,20,"Серов Денис Святославович",null,{"$f":"MATCH(O7,$T$1:$T$13,0)","v":6},"Психология обучения, воспитания и развития",{"$f":"MATCH(Q7,$T$1:$T$13,0)","v":3},"Охрана труда",{"$f":"MATCH(S7,$T$1:$T$13,0)","v":{"$error":"#N/A"}},"","Разговоры о важном: организация и обеспечение внеурочной деятельности",{"$nulls":8},"Разговоры о важном: организация и обеспечение внеурочной деятельности"]
[null,24,11,"(24,11),",{"$nulls":4},"Елисеева Мария Данииловна",null,6,"Горелова Вера Андреевна",null,{"$f":"MATCH(O8,$T$1:$T$13,0)","v":13},"Применение технологий и методов обучения инвестированию",{"$f":"MATCH(Q8,$T$1:$T$13,0)","v":1},"Культура и искусство хх века: основные идеи и методические рекомендации",{"$f":"MATCH(S8,$T$1:$T$13,0)","v":{"$error":"#N/A"}},"","Решение задач егэ по информатике на языке программирования python",{"$nulls":8},"Решение задач егэ по информатике на языке программирования python"]
[null,11,8,"(11,8),",{"$nulls":4},"Калашникова София Платоновна",null,14,"Никифорова Элина Марковна",null,{"$f":"MATCH(O9,$T$1:$T$13,0)","v":12},"Основы фотожурналистики",{"$f":"MATCH(Q9,$T$1:$T$13,0)","v":1},"Культура и искусство хх века: основные идеи и методические рекомендации",{"$f":"MATCH(S9,$T$1:$T$13,0)","v":{"$error":"#N/A"}},"","Функциональная грамотность школьников",{"$nulls":8},"Функциональная грамотность школьников"]
[null,17,12,"(17,12),",{"$nulls":4},"Колесов Фёдор Матвеевич",null,12,"Маркова Дарья Тимуровна",null,{"$f":"MATCH(O10,$T$1:$T$13,0)","v":10},"Методика преподавания основ машинного обучения",{"$f":"MATCH(Q10,$T$1:$T$13,0)","v":{"$error":"#N/A"}},"",{"$f":"MATCH(S10,$T$1:$T$13,0)","v":{"$error":"#N/A"}},"","Методика преподавания основ машинного обучения",{"$nulls":8},"Методика преподавания основ машинного обучения"]
[null,26,8,"(26,8),",{"$nulls":4},"Маркин Иван Сергеевич",null,10,"Колесов Фёдор Матвеевич",null,{"$f":"MATCH(O11,$T$1:$T$13,0)","v":1},"Культура и искусство хх века: основные идеи и методические рекомендации",{"$f":"MATCH(Q11,$T$1:$T$13,0)","v":{"$error":"#N/A"}},"",{"$f":"MATCH(S11,$T$1:$T$13,0)","v":{"$error":"#N/A"}},"","Основы работы в операционной системе м оc",{"$nulls":8},"Основы работы в операционной системе м оc"]
[null,4,1,"(4,1),",{"$nulls":4},"Маркова Дарья Тимуровна",null,11,"Маркин Иван Сергеевич",null,{"$f":"MATCH(O12,$T$1:$T$13,0)","v":8},"Решение задач егэ по информатике на языке программирования python",{"$f":"MATCH(Q12,$T$1:$T$13,0)","v":{"$error":"#N/A"}},"",{"$f":"MATCH(S12,$T$1:$T$13,0)","v":{"$error":"#N/A"}},"","Основы фотожурналистики",{"$nulls":8},"Основы фотожурналистики"]
[null,5,2,"(5,2),",{"$nulls":4},"Наумов Павел Иванович",null,17,"Попова Алиса Ярославовна",null,{"$f":"MATCH(O13,$T$1:$T$13,0)","v":12},"Основы фотожурналистики",{"$f":"MATCH(Q13,$T$1:$T$13,0)","v":{"$error":"#N/A"}},"",{"$f":"MATCH(S13,$T$1:$T$13,0)","v":{"$error":"#N/A"}},"","Применение технологий и методов обучения инвестированию",{"$nulls":8},"Применение технологий и методов обучения инвестированию"]
[null,30,5,"(30,5),",{"$nulls":4},"Никифорова Элина Марковна",null,26,"Федоров Алексей Фёдорович",null,{"$f":"MATCH(O14,$T$1:$T$13,0)","v":8},"Решение задач егэ по информатике на языке программирования python",{"$f":"MATCH(Q14,$T$1:$T$13,0)","v":{"$error":"#N/A"}},"",{"$f":"MATCH(S14,$T$1:$T$13,0)","v":{"$error":"#N/A"}},""]
[null,1,9,"(1,9),",{"$nulls":4},"Одинцова Софья Глебовна",null,4,"Васильев Илья Даниилович",null,{"$f":"MATCH(O15,$T$1:$T$13,0)","v":1},"Культура и искусство хх века: основные идеи и методические рекомендации",{"$f":"MATCH(Q15,$T$1:$T$13,0)","v":{"$error":"#N/A"}},"",{"$f":"MATCH(S15,$T$1:$T$13,0)","v":{"$error":"#N/A"}},""]
[null,9,6,"(9,6),",{"$nulls":4},"Петров Фёдор Павлович",null,30,"Яшина Мария Даниловна",null,{"$f":"MATCH(O16,$T$1:$T$13,0)","v":5},"Психологические основы учебной деятельности",{"$f":"MATCH(Q16,$T$1:$T$13,0)","v":{"$error":"#N/A"}},"",{"$f":"MATCH(S16,$T$1:$T$13,0)","v":{"$error":"#N/A"}},""]
[null,27,7,"(27,7),",{"$nulls":4},"Попова Алиса Ярославовна",null,27,"Фролов Георгий Львович",null,{"$f":"MATCH(O17,$T$1:$T$13,0)","v":7},"Разговоры о важном: организация и обеспечение внеурочной деятельности",{"$f":"MATCH(Q17,$T$1:$T$13,0)","v":{"$error":"#N/A"}},"",{"$f":"MATCH(S17,$T$1:$T$13,0)","v":{"$error":"#N/A"}},""]
[null,16,4,"(16,4),",{"$nulls":4},"Самсонова Кира Богдановна",null,16,"Петров Фёдор Павлович",null,{"$f":"MATCH(O18,$T$1:$T$13,0)","v":4},"Подготовка к школе. Нейропсихологический подход",{"$f":"MATCH(Q18,$T$1:$T$13,0)","v":{"$error":"#N/A"}},"",{"$f":"MATCH(S18,$T$1:$T$13,0)","v":{"$error":"#N/A"}},""]
[null,22,3,"(22,3),",{"$nulls":4},"Седова Алина Дмитриевна",null,22,"Соловьев Матвей Денисович",null,{"$f":"MATCH(O19,$T$1:$T$13,0)","v":3},"Охрана труда",{"$f":"MATCH(Q19,$T$1:$T$13,0)","v":{"$error":"#N/A"}},"",{"$f":"MATCH(S19,$T$1:$T$13,0)","v":{"$error":"#N/A"}},""]
[null,20,6,"(20,6),",{"$nulls":4},"Серов Денис Святославович"]
[null,21,8,"(21,8),",{"$nulls":4},"Смирнов Даниил Максимович"]
[null,15,8,"(15,8),",{"$nulls":4},"Соловьев Матвей Денисович"]
[null,24,8,"(24,8),",{"$nulls":4},"Сорокина Кира Фёдоровна"]
[null,1,7,"(1,7),",{"$nulls":4},"Софронов Глеб Григорьевич"]
[null,5,6,"(5,6),",{"$nulls":4},"Степанова Алиса Артёмовна"]
[null,9,5,"(9,5),",{"$nulls":4},"Федоров Алексей Фёдорович"]
[null,20,3,"(20,3),",{"$nulls":4},"Фролов Георгий Львович"]
[null,6,1,"(6,1),",{"$nulls":4},"Царев Ярослав Львович"]
[null,14,1,"(14,1),",{"$nulls":4},"Шилова Есения Михайловна"]
[null,9,7,"(9,7),",{"$nulls":4},"Яшина Мария Даниловна"]

{"sheet":"TeachersCourses (3)","index":6,"n_rows":20,"n_cols":4,"rows_kept":20,"cut":false,"hidden":false,"merged":[]}
["Column1","Column2","Column3","Column4"]
["Смирнов Даниил Максимович","Основы работы в операционной системе м ос - 36 часов"," Решение задач егэ по информатике на языке программирования python - 72 часа",""]
["Горелова Вера Андреевна","Применение технологий и методов обучения инвестированию - 72 часа"," Культура и искусство хх века: основные идеи и методические рекомендации - 56 часов",""]
["Маркова Дарья Тимуровна","Методика преподавания основ машинного обучения - 30 часов","",""]
["Никифорова Элина Марковна","Основы фотожурналистики - 144 часа"," Культура и искусство хх века: основные идеи и методические рекомендации - 56 часов",""]
[" Колесов Фёдор Матвеевич","Культура и искусство хх века: основные идеи и методические рекомендации - 56 часов","",""]
["Одинцова Софья Глебовна","Методика преподавания основ машинного обучения - 30 часов"," Решение задач егэ по информатике на языке программирования python - 72 часа",""]
["Софронов Глеб Григорьевич","Основы работы в операционной системе м оc - 36 часов"," Решение задач егэ по информатике на языке программирования python - 72 часа",""]
["Маркин Иван Сергеевич","Решение задач егэ по информатике на языке программирования python - 72 часа","",""]
["Попова Алиса Ярославовна","Основы фотожурналистики - 144 часа","",""]
[" Федоров Алексей Фёдорович","Решение задач егэ по информатике на языке программирования python - 72 часа","",""]
["Васильев Илья Даниилович","Культура и искусство хх века: основные идеи и методические рекомендации - 56 часов","",""]
["Воронкова Виктория Львовна"," Общая педагогика - 144 часа"," Психология обучения, воспитания и развития - 72 часа",""]
["Яшина Мария Даниловна"," Психологические основы учебной деятельности - 144 часа","",""]
[" Баранов Илья Дмитриевич"," Функциональная грамотность школьников - 36 часов"," Разговоры о важном: организация и обеспечение внеурочной деятельности - 180 часов",""]
["Калашникова София Платоновна"," Психология обучения, воспитания и развития - 72 часа"," Психологические основы учебной деятельности - 144 часа"," Разговоры о важном: организация и обеспечение внеурочной деятельности - 180 часов"]
["Фролов Георгий Львович"," Разговоры о важном: организация и обеспечение внеурочной деятельности - 180 часов","",""]
["Петров Фёдор Павлович"," Подготовка к школе. Нейропсихологический подход - 72 часа","",""]
["Соловье Матвей Денисович"," Охрана труда - 36 часов","",""]
["Серов Денис Святославович"," Психология обучения, воспитания и развития - 72 часа"," Охрана труда - 36 часов",""]